[Event "Titled Tuesday Blitz April 26 Early 2022"]
[White "Kosteniuk, Alexandra"]
[Black "Al-Tarboush, Ward"]
[WhiteFideId "4128125"]
[BlackFideId "7601450"]
[WhiteElo "2469"]
[BlackElo "2276"]
[Result "0-1"]
[Round "05"]
[TimeControl "180+1"]
[Date "2022.04.26"]
[WhiteClock "0:00:17"]
[BlackClock "0:01:12"]

1. e4 {[%clk 0:03:00]}  e6 {[%clk 0:02:53]} 2. d4 {[%clk 0:03:00]}  d5 {[%clk 0:02:53]} 3. Nc3 {[%clk 0:03:01]}  Nf6 {[%clk 0:02:53]} 4. Bg5 {[%clk 0:02:58]}  dxe4 {[%clk 0:02:53]} 5. Nxe4 {[%clk 0:02:58]}  Be7 {[%clk 0:02:53]} 6. Bxf6 {[%clk 0:02:59]}  gxf6 {[%clk 0:02:54]} 7. Bd3 {[%clk 0:02:52]}  f5 {[%clk 0:02:50]} 8. Ng3 {[%clk 0:02:50]}  c6 {[%clk 0:02:50]} 9. c3 {[%clk 0:02:48]}  Nd7 {[%clk 0:02:50]} 10. Qd2 {[%clk 0:02:40]}  Nf6 {[%clk 0:02:49]} 11. O-O-O {[%clk 0:02:34]}  Qa5 {[%clk 0:02:48]} 12. Kb1 {[%clk 0:02:34]}  Bd7 {[%clk 0:02:48]} 13. Nf3 {[%clk 0:02:33]}  O-O-O {[%clk 0:02:46]} 14. Ne5 {[%clk 0:02:33]}  Be8 {[%clk 0:02:46]} 15. Qe2 {[%clk 0:02:20]}  h5 {[%clk 0:02:43]} 16. h4 {[%clk 0:02:15]}  Ng4 {[%clk 0:02:37]} 17. Nc4 {[%clk 0:02:10]}  Qc7 {[%clk 0:02:37]} 18. Rde1 {[%clk 0:02:05]}  Bf6 {[%clk 0:02:30]} 19. Rh3 {[%clk 0:01:47]}  Bg7 {[%clk 0:02:22]} 20. f3 {[%clk 0:01:40]}  Nf6 {[%clk 0:02:23]} 21. Ne5 {[%clk 0:01:40]}  c5 {[%clk 0:02:18]} 22. dxc5 {[%clk 0:01:20]}  Nd5 {[%clk 0:02:17]} 23. Nxf5 {[%clk 0:01:13]}  exf5 {[%clk 0:02:15]} 24. Bxf5+ {[%clk 0:01:13]}  Kb8 {[%clk 0:02:15]} 25. Rhh1 {[%clk 0:01:03]}  Qxc5 {[%clk 0:02:12]} 26. Qe4 {[%clk 0:00:49]}  Qb6 {[%clk 0:01:58]} 27. Ka1 {[%clk 0:00:45]}  Bc6 {[%clk 0:01:57]} 28. Nxc6+ {[%clk 0:00:44]}  Qxc6 {[%clk 0:01:58]} 29. Qc2 {[%clk 0:00:32]}  Rhe8 {[%clk 0:01:56]} 30. Be4 {[%clk 0:00:32]}  Qc5 {[%clk 0:01:55]} 31. Bxd5 {[%clk 0:00:32]}  Qxd5 {[%clk 0:01:54]} 32. Kb1 {[%clk 0:00:31]}  Rxe1+ {[%clk 0:01:51]} 33. Rxe1 {[%clk 0:00:32]}  Bf6 {[%clk 0:01:50]} 34. Qe4 {[%clk 0:00:28]}  Qxe4+ {[%clk 0:01:50]} 35. Rxe4 {[%clk 0:00:29]}  Rd2 {[%clk 0:01:49]} 36. Rf4 {[%clk 0:00:30]}  Bd8 {[%clk 0:01:46]} 37. g3 {[%clk 0:00:28]}  Rg2 {[%clk 0:01:44]} 38. g4 {[%clk 0:00:26]}  hxg4 {[%clk 0:01:44]} 39. fxg4 {[%clk 0:00:25]}  Bxh4 {[%clk 0:01:44]} 40. Rxf7 {[%clk 0:00:26]}  Rxg4 {[%clk 0:01:44]} 41. Kc2 {[%clk 0:00:26]}  a6 {[%clk 0:01:44]} 42. Kb3 {[%clk 0:00:26]}  Rg2 {[%clk 0:01:44]} 43. a4 {[%clk 0:00:26]}  Bd8 {[%clk 0:01:42]} 44. Rd7 {[%clk 0:00:25]}  Bc7 {[%clk 0:01:42]} 45. Rd5 {[%clk 0:00:25]}  Bf4 {[%clk 0:01:41]} 46. Rd1 {[%clk 0:00:24]}  Ka7 {[%clk 0:01:40]} 47. Ka3 {[%clk 0:00:24]}  Rg6 {[%clk 0:01:38]} 48. b4 {[%clk 0:00:23]}  Rg3 {[%clk 0:01:38]} 49. Kb3 {[%clk 0:00:24]}  Be5 {[%clk 0:01:39]} 50. Rc1 {[%clk 0:00:24]}  b5 {[%clk 0:01:39]} 51. axb5 {[%clk 0:00:24]}  axb5 {[%clk 0:01:40]} 52. Rc2 {[%clk 0:00:24]}  Kb6 {[%clk 0:01:40]} 53. Rc1 {[%clk 0:00:24]}  Re3 {[%clk 0:01:40]} 54. Rc2 {[%clk 0:00:25]}  Kc6 {[%clk 0:01:39]} 55. Rc1 {[%clk 0:00:25]}  Kd5 {[%clk 0:01:39]} 56. Rc2 {[%clk 0:00:24]}  Ke4 {[%clk 0:01:39]} 57. Rc1 {[%clk 0:00:24]}  Kf3 {[%clk 0:01:24]} 58. Rc2 {[%clk 0:00:24]}  Rd3 {[%clk 0:01:15]} 59. Rc1 {[%clk 0:00:23]}  Ke2 {[%clk 0:01:15]} 60. Kb2 {[%clk 0:00:17]}  Rxc3 {[%clk 0:01:12]} 0-1


[Site "https://www.chess.com"]

[Event "Titled Tuesday Blitz April 26 Early 2022"]
[White "Kozak, Adam"]
[Black "Petrovskyi, Vadym"]
[WhiteFideId "753246"]
[BlackFideId "14165210"]
[WhiteElo "2459"]
[BlackElo "2400"]
[Result "1-0"]
[Round "05"]
[TimeControl "180+1"]
[Date "2022.04.26"]
[WhiteClock "0:00:36"]
[BlackClock "0:00:15"]

1. e4 {[%clk 0:03:00]}  c5 {[%clk 0:02:54]} 2. Nf3 {[%clk 0:02:58]}  d6 {[%clk 0:02:54]} 3. Bb5+ {[%clk 0:02:56]}  Bd7 {[%clk 0:02:54]} 4. a4 {[%clk 0:02:56]}  Nf6 {[%clk 0:02:48]} 5. Nc3 {[%clk 0:02:55]}  a6 {[%clk 0:02:47]} 6. Bxd7+ {[%clk 0:02:52]}  Qxd7 {[%clk 0:02:48]} 7. O-O {[%clk 0:02:51]}  Nc6 {[%clk 0:02:47]} 8. Re1 {[%clk 0:02:51]}  e6 {[%clk 0:02:47]} 9. e5 {[%clk 0:02:52]}  dxe5 {[%clk 0:02:46]} 10. Nxe5 {[%clk 0:02:53]}  Nxe5 {[%clk 0:02:47]} 11. Rxe5 {[%clk 0:02:53]}  Bd6 {[%clk 0:02:48]} 12. Re1 {[%clk 0:02:53]}  O-O {[%clk 0:02:48]} 13. d3 {[%clk 0:02:52]}  h6 {[%clk 0:02:48]} 14. a5 {[%clk 0:02:52]}  Qc6 {[%clk 0:02:44]} 15. Bd2 {[%clk 0:02:50]}  Rad8 {[%clk 0:02:43]} 16. Qe2 {[%clk 0:02:49]}  Rfe8 {[%clk 0:02:40]} 17. h3 {[%clk 0:02:49]}  Bc7 {[%clk 0:02:38]} 18. Ne4 {[%clk 0:02:44]}  Nd5 {[%clk 0:02:19]} 19. Qf3 {[%clk 0:02:37]}  c4 {[%clk 0:01:58]} 20. d4 {[%clk 0:02:35]}  f5 {[%clk 0:01:44]} 21. Nc5 {[%clk 0:02:23]}  e5 {[%clk 0:01:10]} 22. c3 {[%clk 0:02:22]}  Rf8 {[%clk 0:00:53]} 23. Qe2 {[%clk 0:02:19]}  e4 {[%clk 0:00:47]} 24. Qxc4 {[%clk 0:02:17]}  Kh8 {[%clk 0:00:48]} 25. Qf1 {[%clk 0:01:32]}  Rde8 {[%clk 0:00:45]} 26. c4 {[%clk 0:01:29]}  Nf6 {[%clk 0:00:44]} 27. b4 {[%clk 0:01:00]}  f4 {[%clk 0:00:44]} 28. f3 {[%clk 0:00:57]}  e3 {[%clk 0:00:35]} 29. Bc3 {[%clk 0:00:57]}  Nh5 {[%clk 0:00:36]} 30. Qd3 {[%clk 0:00:56]}  Bd6 {[%clk 0:00:23]} 31. d5 {[%clk 0:00:53]}  Qc7 {[%clk 0:00:23]} 32. Qg6 {[%clk 0:00:52]}  Be5 {[%clk 0:00:17]} 33. Bxe5 {[%clk 0:00:47]}  Qxe5 {[%clk 0:00:18]} 34. Nd7 {[%clk 0:00:47]}  Qd4 {[%clk 0:00:15]} 35. Nxf8 {[%clk 0:00:45]}  e2+ {[%clk 0:00:15]} 36. Kh2 {[%clk 0:00:45]}  Ng3 {[%clk 0:00:16]} 37. Qxe8 {[%clk 0:00:40]}  Qf2 {[%clk 0:00:14]} 38. Ng6+ {[%clk 0:00:39]}  Kh7 {[%clk 0:00:14]} 39. Nxf4 {[%clk 0:00:37]}  Nf1+ {[%clk 0:00:14]} 40. Rxf1 {[%clk 0:00:37]}  exf1=Q {[%clk 0:00:15]} 41. Rxf1 {[%clk 0:00:37]}  Qxf1 {[%clk 0:00:16]} 42. Qe4+ {[%clk 0:00:37]}  Kg8 {[%clk 0:00:15]} 43. d6 {[%clk 0:00:36]}  Qd1 {[%clk 0:00:15]} 44. Qd5+ {[%clk 0:00:36]} 1-0


[Site "https://www.chess.com"]

[Event "Titled Tuesday Blitz April 26 Early 2022"]
[White "Lach, Aleksandra"]
[Black "Seemann, Jakub"]
[WhiteFideId "1134299"]
[BlackFideId "21874697"]
[WhiteElo "2172"]
[BlackElo "2003"]
[Result "0-1"]
[Round "05"]
[TimeControl "180+1"]
[Date "2022.04.26"]
[WhiteClock "0:00:17"]
[BlackClock "0:00:07"]

1. e4 {[%clk 0:03:00]}  e5 {[%clk 0:02:59]} 2. Nc3 {[%clk 0:02:58]}  Nf6 {[%clk 0:02:59]} 3. d4 {[%clk 0:02:58]}  exd4 {[%clk 0:02:55]} 4. Qxd4 {[%clk 0:02:59]}  Nc6 {[%clk 0:02:54]} 5. Qd3 {[%clk 0:02:59]}  Bb4 {[%clk 0:02:52]} 6. Bd2 {[%clk 0:02:59]}  O-O {[%clk 0:02:51]} 7. O-O-O {[%clk 0:02:59]}  d6 {[%clk 0:02:48]} 8. f3 {[%clk 0:02:59]}  Be6 {[%clk 0:02:48]} 9. Nd5 {[%clk 0:02:27]}  Nxd5 {[%clk 0:02:34]} 10. exd5 {[%clk 0:02:23]}  Ne5 {[%clk 0:02:34]} 11. Qb3 {[%clk 0:02:21]}  Bxd2+ {[%clk 0:02:32]} 12. Rxd2 {[%clk 0:02:21]}  Bd7 {[%clk 0:02:27]} 13. f4 {[%clk 0:02:20]}  Ng6 {[%clk 0:02:27]} 14. g3 {[%clk 0:02:20]}  Re8 {[%clk 0:02:26]} 15. Be2 {[%clk 0:02:10]}  a5 {[%clk 0:02:11]} 16. a3 {[%clk 0:02:06]}  a4 {[%clk 0:02:09]} 17. Qb4 {[%clk 0:01:59]}  Qe7 {[%clk 0:01:19]} 18. Nf3 {[%clk 0:01:29]}  b6 {[%clk 0:01:19]} 19. Nd4 {[%clk 0:01:25]}  Qe3 {[%clk 0:01:13]} 20. Kb1 {[%clk 0:01:12]}  Ne7 {[%clk 0:00:53]} 21. Bf3 {[%clk 0:01:08]}  Nf5 {[%clk 0:00:51]} 22. Bg2 {[%clk 0:00:55]}  Nxd4 {[%clk 0:00:47]} 23. Rxd4 {[%clk 0:00:55]}  Bf5 {[%clk 0:00:46]} 24. Qd2 {[%clk 0:00:50]}  Qxd2 {[%clk 0:00:27]} 25. Rxd2 {[%clk 0:00:51]}  Re3 {[%clk 0:00:27]} 26. Rc1 {[%clk 0:00:26]}  Rae8 {[%clk 0:00:26]} 27. Bf1 {[%clk 0:00:26]}  h5 {[%clk 0:00:23]} 28. Bb5 {[%clk 0:00:26]}  R8e4 {[%clk 0:00:19]} 29. Bd3 {[%clk 0:00:25]}  Rd4 {[%clk 0:00:18]} 30. Rcd1 {[%clk 0:00:25]}  Bxd3 {[%clk 0:00:15]} 31. Rxd3 {[%clk 0:00:24]}  Rexd3 {[%clk 0:00:15]} 32. cxd3 {[%clk 0:00:24]}  Rxd5 {[%clk 0:00:15]} 33. Kc2 {[%clk 0:00:25]}  f6 {[%clk 0:00:11]} 34. Kc3 {[%clk 0:00:24]}  g5 {[%clk 0:00:11]} 35. fxg5 {[%clk 0:00:24]}  fxg5 {[%clk 0:00:11]} 36. d4 {[%clk 0:00:23]}  Kf7 {[%clk 0:00:11]} 37. Rf1+ {[%clk 0:00:22]}  Ke6 {[%clk 0:00:11]} 38. Re1+ {[%clk 0:00:22]}  Kd7 {[%clk 0:00:11]} 39. Rf1 {[%clk 0:00:22]}  Ke6 {[%clk 0:00:08]} 40. Re1+ {[%clk 0:00:22]}  Kf5 {[%clk 0:00:08]} 41. Kc4 {[%clk 0:00:21]}  c6 {[%clk 0:00:08]} 42. h3 {[%clk 0:00:18]}  b5+ {[%clk 0:00:08]} 43. Kc3 {[%clk 0:00:17]}  h4 {[%clk 0:00:09]} 44. Rf1+ {[%clk 0:00:16]}  Ke4 {[%clk 0:00:09]} 45. gxh4 {[%clk 0:00:15]}  gxh4 {[%clk 0:00:09]} 46. Rg1 {[%clk 0:00:16]}  c5 {[%clk 0:00:04]} 47. Rg4+ {[%clk 0:00:15]}  Kf3 {[%clk 0:00:03]} 48. dxc5 {[%clk 0:00:14]}  Rxc5+ {[%clk 0:00:04]} 49. Kb4 {[%clk 0:00:14]}  Rc4+ {[%clk 0:00:04]} 50. Rxc4 {[%clk 0:00:14]}  bxc4 {[%clk 0:00:05]} 51. Kxa4 {[%clk 0:00:14]}  d5 {[%clk 0:00:04]} 52. Kb4 {[%clk 0:00:14]}  d4 {[%clk 0:00:04]} 53. Kxc4 {[%clk 0:00:15]}  Ke3 {[%clk 0:00:05]} 54. a4 {[%clk 0:00:15]}  d3 {[%clk 0:00:05]} 55. a5 {[%clk 0:00:16]}  d2 {[%clk 0:00:06]} 56. a6 {[%clk 0:00:16]}  d1=Q {[%clk 0:00:07]} 57. a7 {[%clk 0:00:17]}  Qd4+ {[%clk 0:00:07]} 0-1


[Site "https://www.chess.com"]

[Event "Titled Tuesday Blitz April 26 Early 2022"]
[White "Leiva, Gianmarco"]
[Black "Nozdrachev, Leonid"]
[WhiteFideId "3804399"]
[BlackFideId "24113433"]
[WhiteElo "2323"]
[BlackElo "2242"]
[Result "1-0"]
[Round "05"]
[TimeControl "180+1"]
[Date "2022.04.26"]
[WhiteClock "0:00:32"]
[BlackClock "0:01:21"]

1. e4 {[%clk 0:03:00]}  c6 {[%clk 0:02:58]} 2. d4 {[%clk 0:03:00]}  d5 {[%clk 0:02:54]} 3. e5 {[%clk 0:02:54]}  Bf5 {[%clk 0:02:53]} 4. Nf3 {[%clk 0:02:50]}  e6 {[%clk 0:02:51]} 5. Be2 {[%clk 0:02:50]}  a6 {[%clk 0:02:41]} 6. O-O {[%clk 0:02:44]}  h6 {[%clk 0:02:40]} 7. Nbd2 {[%clk 0:02:26]}  Nd7 {[%clk 0:02:39]} 8. a4 {[%clk 0:02:24]}  Ne7 {[%clk 0:02:34]} 9. Nb3 {[%clk 0:02:22]}  Bg6 {[%clk 0:02:22]} 10. Bd2 {[%clk 0:02:10]}  Nf5 {[%clk 0:02:20]} 11. a5 {[%clk 0:02:04]}  c5 {[%clk 0:02:14]} 12. c4 {[%clk 0:01:10]}  dxc4 {[%clk 0:02:08]} 13. Bxc4 {[%clk 0:01:10]}  cxd4 {[%clk 0:02:06]} 14. Qe2 {[%clk 0:01:06]}  Bc5 {[%clk 0:02:02]} 15. Rac1 {[%clk 0:01:00]}  Ba7 {[%clk 0:01:59]} 16. Bb4 {[%clk 0:00:58]}  Nb8 {[%clk 0:01:52]} 17. Rfd1 {[%clk 0:00:52]}  Nc6 {[%clk 0:01:51]} 18. Ba3 {[%clk 0:00:52]}  Bh5 {[%clk 0:01:44]} 19. Bxa6 {[%clk 0:00:41]}  bxa6 {[%clk 0:01:34]} 20. Rxc6 {[%clk 0:00:41]}  Qd5 {[%clk 0:01:33]} 21. Qxa6 {[%clk 0:00:33]}  Qxb3 {[%clk 0:01:27]} 22. Rc8+ {[%clk 0:00:32]}  Kd7 {[%clk 0:01:21]} 23. Qc6# {[%clk 0:00:32]} 1-0


[Site "https://www.chess.com"]

[Event "Titled Tuesday Blitz April 26 Early 2022"]
[White "Ljukin, Sergei"]
[Black "Todorovic, Bojan"]
[WhiteFideId "14102200"]
[BlackFideId "917087"]
[WhiteElo "2312"]
[BlackElo "2266"]
[Result "1/2-1/2"]
[Round "05"]
[TimeControl "180+1"]
[Date "2022.04.26"]
[WhiteClock "0:00:05"]
[BlackClock "0:00:08"]

1. e4 {[%clk 0:02:57]}  e5 {[%clk 0:02:59]} 2. Nf3 {[%clk 0:02:56]}  Nc6 {[%clk 0:02:58]} 3. Bb5 {[%clk 0:02:56]}  Nf6 {[%clk 0:02:57]} 4. Qe2 {[%clk 0:02:56]}  Be7 {[%clk 0:02:49]} 5. c3 {[%clk 0:02:55]}  d6 {[%clk 0:02:38]} 6. O-O {[%clk 0:02:54]}  O-O {[%clk 0:02:37]} 7. d4 {[%clk 0:02:54]}  Bd7 {[%clk 0:02:35]} 8. Rd1 {[%clk 0:02:52]}  a6 {[%clk 0:02:27]} 9. Bc4 {[%clk 0:02:25]}  Bg4 {[%clk 0:02:11]} 10. h3 {[%clk 0:02:15]}  Bh5 {[%clk 0:02:08]} 11. Bg5 {[%clk 0:01:45]}  Re8 {[%clk 0:02:01]} 12. d5 {[%clk 0:01:42]}  Nb8 {[%clk 0:01:59]} 13. g4 {[%clk 0:01:30]}  Bg6 {[%clk 0:01:55]} 14. Bd3 {[%clk 0:01:30]}  Nxd5 {[%clk 0:01:51]} 15. Bxe7 {[%clk 0:01:21]}  Nxe7 {[%clk 0:01:51]} 16. c4 {[%clk 0:01:21]}  Nbc6 {[%clk 0:01:50]} 17. Nc3 {[%clk 0:01:20]}  Nd4 {[%clk 0:01:48]} 18. Nxd4 {[%clk 0:01:19]}  exd4 {[%clk 0:01:48]} 19. Nd5 {[%clk 0:01:19]}  Nxd5 {[%clk 0:01:43]} 20. cxd5 {[%clk 0:01:18]}  c5 {[%clk 0:01:38]} 21. dxc6 {[%clk 0:01:10]}  bxc6 {[%clk 0:01:37]} 22. f4 {[%clk 0:01:05]}  Bxe4 {[%clk 0:01:29]} 23. Bxe4 {[%clk 0:01:04]}  d5 {[%clk 0:01:29]} 24. Rxd4 {[%clk 0:01:04]}  Qb6 {[%clk 0:01:29]} 25. Qf2 {[%clk 0:01:01]}  dxe4 {[%clk 0:01:24]} 26. Re1 {[%clk 0:00:54]}  e3 {[%clk 0:01:03]} 27. Rxe3 {[%clk 0:00:53]}  Rxe3 {[%clk 0:01:02]} 28. Qxe3 {[%clk 0:00:54]}  Qxb2 {[%clk 0:01:02]} 29. Rd2 {[%clk 0:00:44]}  Qb1+ {[%clk 0:00:54]} 30. Kh2 {[%clk 0:00:41]}  h6 {[%clk 0:00:50]} 31. Qc5 {[%clk 0:00:20]}  Qe4 {[%clk 0:00:45]} 32. Qd6 {[%clk 0:00:15]}  c5 {[%clk 0:00:39]} 33. f5 {[%clk 0:00:13]}  c4 {[%clk 0:00:35]} 34. f6 {[%clk 0:00:12]}  c3 {[%clk 0:00:31]} 35. Rf2 {[%clk 0:00:11]}  c2 {[%clk 0:00:28]} 36. Qc5 {[%clk 0:00:11]}  Rd8 {[%clk 0:00:15]} 37. Qxc2 {[%clk 0:00:09]}  Qe5+ {[%clk 0:00:15]} 38. Kg2 {[%clk 0:00:09]}  gxf6 {[%clk 0:00:15]} 39. Qf5 {[%clk 0:00:08]}  Rd5 {[%clk 0:00:11]} 40. Qxf6 {[%clk 0:00:07]}  Qe4+ {[%clk 0:00:11]} 41. Kh2 {[%clk 0:00:06]}  Qe5+ {[%clk 0:00:06]} 42. Qxe5 {[%clk 0:00:04]}  Rxe5 {[%clk 0:00:07]} 43. Kg3 {[%clk 0:00:04]}  Ra5 {[%clk 0:00:07]} 44. Kf4 {[%clk 0:00:04]}  Kg7 {[%clk 0:00:07]} 45. h4 {[%clk 0:00:04]}  Ra4+ {[%clk 0:00:07]} 46. Kf5 {[%clk 0:00:04]}  Ra5+ {[%clk 0:00:07]} 47. Kf4 {[%clk 0:00:04]}  Ra4+ {[%clk 0:00:08]} 48. Kf5 {[%clk 0:00:04]}  Ra5+ {[%clk 0:00:08]} 49. Kf4 {[%clk 0:00:05]} 1/2-1/2


[Site "https://www.chess.com"]

[Event "Titled Tuesday Blitz April 26 Early 2022"]
[White "Maksimovic, Bojan"]
[Black "Martinez Alcantara, Jose Eduardo"]
[WhiteFideId "14408120"]
[BlackFideId "3805662"]
[WhiteElo "2448"]
[BlackElo "2690"]
[Result "0-1"]
[Round "05"]
[TimeControl "180+1"]
[Date "2022.04.26"]
[WhiteClock "0:00:12"]
[BlackClock "0:00:17"]

1. e4 {[%clk 0:03:00]}  c5 {[%clk 0:02:59]} 2. Nf3 {[%clk 0:03:00]}  d6 {[%clk 0:03:00]} 3. d4 {[%clk 0:03:01]}  cxd4 {[%clk 0:03:01]} 4. Nxd4 {[%clk 0:03:01]}  Nf6 {[%clk 0:03:01]} 5. Nc3 {[%clk 0:03:02]}  Nc6 {[%clk 0:03:01]} 6. Bg5 {[%clk 0:03:01]}  e6 {[%clk 0:03:01]} 7. Qd2 {[%clk 0:03:01]}  a6 {[%clk 0:03:01]} 8. O-O-O {[%clk 0:03:01]}  Bd7 {[%clk 0:03:02]} 9. f3 {[%clk 0:03:01]}  Nxd4 {[%clk 0:03:00]} 10. Qxd4 {[%clk 0:03:01]}  Be7 {[%clk 0:03:00]} 11. h4 {[%clk 0:03:00]}  Bc6 {[%clk 0:03:00]} 12. Be2 {[%clk 0:02:50]}  h6 {[%clk 0:02:57]} 13. Be3 {[%clk 0:02:47]}  b5 {[%clk 0:02:17]} 14. g4 {[%clk 0:02:31]}  e5 {[%clk 0:02:17]} 15. Qd2 {[%clk 0:02:29]}  b4 {[%clk 0:02:17]} 16. Nd5 {[%clk 0:02:26]}  Nxd5 {[%clk 0:01:32]} 17. exd5 {[%clk 0:02:27]}  Bb5 {[%clk 0:01:33]} 18. Bxb5+ {[%clk 0:01:37]}  axb5 {[%clk 0:01:34]} 19. Qxb4 {[%clk 0:01:37]}  Qd7 {[%clk 0:01:35]} 20. Kb1 {[%clk 0:00:57]}  O-O {[%clk 0:01:26]} 21. b3 {[%clk 0:00:57]}  Bd8 {[%clk 0:00:56]} 22. Qe4 {[%clk 0:00:51]}  Ba5 {[%clk 0:00:52]} 23. h5 {[%clk 0:00:22]}  Qc7 {[%clk 0:00:41]} 24. Bc1 {[%clk 0:00:19]}  Bc3 {[%clk 0:00:41]} 25. a3 {[%clk 0:00:16]}  Qc5 {[%clk 0:00:33]} 26. Rd3 {[%clk 0:00:16]}  Rfc8 {[%clk 0:00:22]} 27. Rxc3 {[%clk 0:00:08]}  Qxc3 {[%clk 0:00:22]} 28. Rd1 {[%clk 0:00:08]}  Qc5 {[%clk 0:00:16]} 29. Bb2 {[%clk 0:00:07]}  Qf2 {[%clk 0:00:14]} 30. Qd3 {[%clk 0:00:04]}  Rc5 {[%clk 0:00:11]} 31. Rf1 {[%clk 0:00:04]}  Qg2 {[%clk 0:00:12]} 32. Rc1 {[%clk 0:00:02]}  Rac8 {[%clk 0:00:12]} 33. b4 {[%clk 0:00:02]}  Rc4 {[%clk 0:00:12]} 34. Qe3 {[%clk 0:00:01]}  f6 {[%clk 0:00:11]} 35. Qd3 {[%clk 0:00:01]}  Qf2 {[%clk 0:00:11]} 36. Rf1 {[%clk 0:00:01]}  Qh2 {[%clk 0:00:10]} 37. c3 {[%clk 0:00:01]}  Qg2 {[%clk 0:00:10]} 38. Rd1 {[%clk 0:00:01]}  e4 {[%clk 0:00:10]} 39. fxe4 {[%clk 0:00:01]}  Qxe4 {[%clk 0:00:11]} 40. Qxe4 {[%clk 0:00:02]}  Rxe4 {[%clk 0:00:12]} 41. Rg1 {[%clk 0:00:02]}  Rcc4 {[%clk 0:00:11]} 42. Kc2 {[%clk 0:00:02]}  Rxg4 {[%clk 0:00:12]} 43. Rd1 {[%clk 0:00:02]}  f5 {[%clk 0:00:12]} 44. Kb3 {[%clk 0:00:03]}  Rc8 {[%clk 0:00:09]} 45. a4 {[%clk 0:00:03]}  bxa4+ {[%clk 0:00:10]} 46. Kxa4 {[%clk 0:00:04]}  f4 {[%clk 0:00:11]} 47. Rd4 {[%clk 0:00:03]}  g6 {[%clk 0:00:10]} 48. hxg6 {[%clk 0:00:03]}  h5 {[%clk 0:00:11]} 49. c4 {[%clk 0:00:03]}  f3 {[%clk 0:00:11]} 50. Rxg4 {[%clk 0:00:02]}  hxg4 {[%clk 0:00:11]} 51. Kb5 {[%clk 0:00:03]}  f2 {[%clk 0:00:11]} 52. c5 {[%clk 0:00:03]}  f1=Q+ {[%clk 0:00:12]} 53. Kb6 {[%clk 0:00:04]}  Qc4 {[%clk 0:00:11]} 54. Kb7 {[%clk 0:00:03]}  Qxb4+ {[%clk 0:00:11]} 55. Kxc8 {[%clk 0:00:04]}  Qxc5+ {[%clk 0:00:12]} 56. Kd7 {[%clk 0:00:04]}  Qxd5 {[%clk 0:00:12]} 57. g7 {[%clk 0:00:04]}  g3 {[%clk 0:00:13]} 58. Be5 {[%clk 0:00:05]}  dxe5+ {[%clk 0:00:12]} 59. Kc7 {[%clk 0:00:06]}  e4 {[%clk 0:00:12]} 60. Kb8 {[%clk 0:00:06]}  e3 {[%clk 0:00:12]} 61. Ka7 {[%clk 0:00:07]}  Qb3 {[%clk 0:00:12]} 62. Ka8 {[%clk 0:00:07]}  Kxg7 {[%clk 0:00:13]} 63. Ka7 {[%clk 0:00:08]}  Kf7 {[%clk 0:00:14]} 64. Ka8 {[%clk 0:00:09]}  Ke7 {[%clk 0:00:15]} 65. Ka7 {[%clk 0:00:10]}  Kd7 {[%clk 0:00:15]} 66. Ka8 {[%clk 0:00:11]}  Kc7 {[%clk 0:00:16]} 67. Ka7 {[%clk 0:00:12]}  Qa3# {[%clk 0:00:17]} 0-1


[Site "https://www.chess.com"]

[Event "Titled Tuesday Blitz April 26 Early 2022"]
[White "Mihailidis, Anastasios"]
[Black "Ferreira, Vitor Hugo Vieira"]
[WhiteFideId "4205588"]
[BlackFideId "2119765"]
[WhiteElo "2312"]
[BlackElo "2165"]
[Result "0-1"]
[Round "05"]
[TimeControl "180+1"]
[Date "2022.04.26"]
[WhiteClock "0:00:25"]
[BlackClock "0:01:22"]

1. e4 {[%clk 0:03:00]}  c5 {[%clk 0:02:53]} 2. Nf3 {[%clk 0:03:01]}  d6 {[%clk 0:02:52]} 3. d4 {[%clk 0:03:01]}  cxd4 {[%clk 0:02:53]} 4. Nxd4 {[%clk 0:03:02]}  Nf6 {[%clk 0:02:53]} 5. f3 {[%clk 0:03:02]}  a6 {[%clk 0:02:54]} 6. c4 {[%clk 0:03:03]}  g6 {[%clk 0:02:53]} 7. Nc3 {[%clk 0:03:03]}  Bg7 {[%clk 0:02:53]} 8. Be3 {[%clk 0:03:04]}  O-O {[%clk 0:02:54]} 9. Be2 {[%clk 0:03:04]}  Nc6 {[%clk 0:02:52]} 10. O-O {[%clk 0:03:04]}  Bd7 {[%clk 0:02:50]} 11. Qd2 {[%clk 0:03:03]}  Rc8 {[%clk 0:02:50]} 12. Rac1 {[%clk 0:03:03]}  Ne5 {[%clk 0:02:37]} 13. b3 {[%clk 0:03:03]}  Qa5 {[%clk 0:02:37]} 14. Rfd1 {[%clk 0:03:02]}  Rfd8 {[%clk 0:02:36]} 15. Kh1 {[%clk 0:02:53]}  h5 {[%clk 0:02:36]} 16. Bf1 {[%clk 0:02:50]}  h4 {[%clk 0:02:36]} 17. Rc2 {[%clk 0:02:36]}  b5 {[%clk 0:02:09]} 18. cxb5 {[%clk 0:02:31]}  axb5 {[%clk 0:02:09]} 19. Rdc1 {[%clk 0:02:31]}  h3 {[%clk 0:02:09]} 20. Ncxb5 {[%clk 0:02:21]}  hxg2+ {[%clk 0:02:07]} 21. Kxg2 {[%clk 0:02:18]}  Rxc2 {[%clk 0:02:02]} 22. Rxc2 {[%clk 0:02:13]}  Qa8 {[%clk 0:01:58]} 23. Be2 {[%clk 0:01:59]}  Nxe4 {[%clk 0:01:57]} 24. fxe4 {[%clk 0:01:55]}  Qxe4+ {[%clk 0:01:58]} 25. Bf3 {[%clk 0:01:49]}  Nxf3 {[%clk 0:01:52]} 26. Nxf3 {[%clk 0:01:50]}  Bxb5 {[%clk 0:01:47]} 27. Rc1 {[%clk 0:01:29]}  Bc6 {[%clk 0:01:44]} 28. Qf2 {[%clk 0:01:26]}  Qg4+ {[%clk 0:01:44]} 29. Qg3 {[%clk 0:01:23]}  Bxf3+ {[%clk 0:01:43]} 30. Kf2 {[%clk 0:01:23]}  Qxg3+ {[%clk 0:01:43]} 31. hxg3 {[%clk 0:01:23]}  Bd5 {[%clk 0:01:39]} 32. Rc7 {[%clk 0:01:11]}  Bf6 {[%clk 0:01:28]} 33. Ke2 {[%clk 0:01:01]}  Ra8 {[%clk 0:01:28]} 34. Ba7 {[%clk 0:00:58]}  e6 {[%clk 0:01:24]} 35. Kd3 {[%clk 0:00:54]}  Bd8 {[%clk 0:01:24]} 36. Rd7 {[%clk 0:00:50]}  Bc6 {[%clk 0:01:24]} 37. Rxd6 {[%clk 0:00:48]}  Bb5+ {[%clk 0:01:23]} 38. Ke4 {[%clk 0:00:35]}  Bc7 {[%clk 0:01:23]} 39. a4 {[%clk 0:00:25]}  Bxd6 {[%clk 0:01:21]} 40. axb5 {[%clk 0:00:25]}  Rxa7 {[%clk 0:01:22]} 0-1


[Site "https://www.chess.com"]